fUSD/lending_fUSD_20250930
["ID","MTS","AMOUNT","RATE_DAILY","PERIOD"]
[388569164,1759243880191,-500.0,0.00019452,2]
[388569165,1759243880200,-206.530796,0.00019452,2]
[388569166,1759243880210,-948.57,0.00019452,2]
[388569167,1759243880220,-151.0,0.00019452,2]
[388569168,1759243880230,-3509.0,0.00019452,2]
[388569169,1759243880240,-500.0,0.00019452,2]
[388569170,1759243880250,-1043.98,0.00019452,2]
[388569171,1759243880260,-151.0,0.00019452,2]
[388569172,1759243880270,-1002.99,0.00019452,2]
[388569173,1759243880279,-500.0,0.00019452,2]
[388569174,1759243880289,-3298.82,0.00019452,2]
[388569175,1759243880298,-1877.95,0.00019452,2]
[388569176,1759243880308,-500.0,0.00019452,2]
[388569177,1759243880317,-575.92,0.00019452,2]
[388569178,1759243880327,-595.256096,0.00019452,2]
[388569179,1759243880337,-2949.36,0.00019452,2]
[388569180,1759243880348,-4003.15,0.00019452,2]
[388569181,1759243880358,-500.0,0.00019452,2]
[388569182,1759243880367,-504.58,0.00019452,2]
[388569183,1759243880377,-500.0,0.00019452,2]
[388569184,1759243880387,-595.256096,0.00019452,2]
[388569185,1759243880397,-2276.63,0.00019452,2]
[388569186,1759243880407,-500.0,0.00019452,2]
[388569187,1759243880416,-500.0,0.00019452,2]
[388569188,1759243880425,-500.0,0.00019452,2]
[388569189,1759243880434,-595.256096,0.00019452,2]
[388569190,1759243880444,-595.256096,0.00019452,2]
[388569191,1759243880454,-500.0,0.00019452,2]
[388569192,1759243880464,-500.0,0.00019452,2]
[388569193,1759243880473,-551.58,0.00019452,2]
[388569194,1759243880483,-4326.28,0.00019452,2]
[388569195,1759243880492,-4579.72,0.00019452,2]
[388569196,1759243880502,-500.0,0.00019452,2]
[388569197,1759243880513,-500.0,0.00019452,2]
[388569198,1759243880522,-500.0,0.00019452,2]
[388569199,1759243880532,-4667.32,0.00019452,2]
[388569200,1759243880542,-2121.11,0.00019452,2]
[388569201,1759243880551,-151.0,0.00019452,2]
[388569202,1759243880561,-659.75,0.00019452,2]
[388569203,1759243880571,-151.0,0.00019452,2]
[388569204,1759243880580,-500.0,0.00019452,2]
[388569205,1759243880590,-500.0,0.00019452,2]
[388569206,1759243880601,-722.87,0.00019452,2]
[388569207,1759243880610,-692.75,0.00019452,2]
[388569208,1759243880619,-5020.85,0.00019452,2]
[388569209,1759243880629,-1899.13,0.00019452,2]
[388569210,1759243880638,-151.0,0.00019452,2]
[388569211,1759243880648,-3031.79,0.00019452,2]
[388569212,1759243880657,-500.0,0.00019452,2]
[388569213,1759243880667,-532.98,0.00019452,2]
[388569214,1759243880676,-1124.83,0.00019452,2]
[388569215,1759243880685,-1756.01,0.00019452,2]
[388569216,1759243880695,-715.28,0.00019452,2]
[388569217,1759243880704,-5421.88,0.00019452,2]
[388569218,1759243880714,-500.0,0.00019452,2]
[388569219,1759243880723,-500.0,0.00019452,2]
[388569220,1759243880732,-500.0,0.00019452,2]
[388569221,1759243880743,-248.082918,0.00019452,2]
[388569222,1759243880753,-248.082918,0.00019452,2]
[388569223,1759243880763,-4640.6,0.00019452,2]
[388569224,1759243880773,-2742.48,0.00019452,2]
[388569225,1759243880783,-248.082918,0.00019452,2]
[388569226,1759243880791,-500.0,0.00019452,2]
[388569227,1759243880801,-500.0,0.00019452,2]
[388569228,1759243880810,-500.0,0.00019452,2]
[388569229,1759243880819,-3900.26,0.00019452,2]
[388569230,1759243880828,-248.082918,0.00019452,2]
[388569231,1759243880838,-4877.04,0.00019452,2]
[388569232,1759243880847,-523.26,0.00019452,2]
[388569233,1759243880857,-3168.12,0.00019452,2]
[388569234,1759243880868,-500.0,0.00019452,2]
[388569235,1759243880877,-500.0,0.00019452,2]
[388569236,1759243880887,-560.42,0.00019452,2]
[388569237,1759243880897,-1903.48,0.00019452,2]
[388569238,1759243880907,-2521.38,0.00019452,2]
[388569239,1759243880917,-500.0,0.00019452,2]
[388569240,1759243880928,-2806.65,0.00019452,2]
[388569241,1759243880938,-500.0,0.00019452,2]
[388569242,1759243880947,-151.0,0.00019452,2]
[388569243,1759243880957,-883.02,0.00019452,2]
[388569244,1759243880966,-500.0,0.00019452,2]
[388569245,1759243880976,-3713.1,0.00019452,2]
[388569246,1759243880986,-151.0,0.00019452,2]
[388569247,1759243880995,-2506.86,0.00019452,2]
[388569248,1759243881004,-751.89,0.00019452,2]
[388569249,1759243881015,-825.96,0.00019452,2]
[388569250,1759243881025,-228.126964,0.00019452,2]
[388569251,1759243881034,-500.0,0.00019452,2]
[388569252,1759243881048,-604.76,0.00019452,2]
[388569253,1759243881060,-500.0,0.00019452,2]
[388569254,1759243881071,-4055.75,0.00019452,2]
[388569255,1759243881081,-1918.23,0.00019452,2]
[388569256,1759243881093,-3017.79,0.00019452,2]
[388569257,1759243881476,-872.23,0.00019452,2]
[388569258,1759243881486,-500.0,0.00019452,2]
[388569259,1759243881495,-151.0,0.00019452,2]
[388569260,1759243881505,-500.0,0.00019452,2]
[388569261,1759243881516,-500.0,0.00019452,2]
[388569262,1759243881526,-151.0,0.00019452,2]
[388569263,1759243881535,-500.0,0.00019452,2]
[388569264,1759243881545,-151.0,0.00019452,2]
[388569265,1759243881555,-500.0,0.00019452,2]
[388569266,1759243881565,-151.0,0.00019452,2]
[388569267,1759243881574,-2034.94,0.00019452,2]
[388569268,1759243881583,-922.96,0.00019452,2]
[388569269,1759243881593,-500.0,0.00019452,2]
[388569270,1759243881602,-500.0,0.00019452,2]
[388569271,1759243881612,-1339.37,0.00019452,2]
[388569272,1759243881622,-151.0,0.00019452,2]
[388569273,1759243881632,-500.0,0.00019452,2]
[388569274,1759243881642,-500.0,0.00019452,2]
[388569275,1759243881651,-151.0,0.00019452,2]
[388569276,1759243881660,-500.0,0.00019452,2]
[388569277,1759243881670,-818.91,0.00019452,2]
[388569278,1759243881679,-3132.31,0.00019452,2]
[388569279,1759243881689,-500.0,0.00019452,2]
[388569280,1759243881698,-311.809884,0.00019452,2]
[388569281,1759243881707,-500.0,0.00019452,2]
[388569282,1759243881716,-311.809884,0.00019452,2]
[388569283,1759243881726,-3246.07,0.00019452,2]
[388569284,1759243881736,-500.0,0.00019452,2]
[388569285,1759243881745,-500.0,0.00019452,2]
[388569286,1759243881756,-2473.07,0.00019452,2]
[388569287,1759243881766,-311.809884,0.00019452,2]
[388569288,1759243881776,-311.809884,0.00019452,2]
[388569289,1759243881786,-3870.52,0.00019452,2]
[388569290,1759243881796,-500.0,0.00019452,2]
[388569291,1759243881806,-500.0,0.00019452,2]
[388569292,1759243881815,-1087.57,0.00019452,2]
[388569293,1759243881825,-500.0,0.00019452,2]
[388569294,1759243881835,-177.377123,0.00019452,2]
[388569295,1759243881844,-4139.96,0.00019452,2]
[388569296,1759243881854,-1767.54,0.00019452,2]
[388569297,1759243881863,-500.0,0.00019452,2]
[388569298,1759243881874,-500.0,0.00019452,2]
[388569299,1759243881884,-189.657851,0.00019452,2]
[388569300,1759243881893,-500.0,0.00019452,2]
[388569301,1759243881903,-3201.03,0.00019452,2]
[388569302,1759243881912,-500.0,0.00019452,2]
[388569303,1759243881922,-2034.42,0.00019452,2]
[388569304,1759243881932,-189.657851,0.00019452,2]
[388569305,1759243881943,-500.0,0.00019452,2]
[388569306,1759243881952,-189.657851,0.00019452,2]
[388569307,1759243881962,-958.22,0.00019452,2]
[388569308,1759243881971,-500.0,0.00019452,2]
[388569309,1759243881980,-500.0,0.00019452,2]
[388569310,1759243881989,-500.0,0.00019452,2]
[388569311,1759243881999,-189.657851,0.00019452,2]
[388569312,1759243882009,-2548.08,0.00019452,2]
[388569313,1759243882021,-513.462665,0.00019452,2]
[388569314,1759243882030,-500.0,0.00019452,2]
[388569315,1759243882042,-500.0,0.00019452,2]
[388569316,1759243882053,-177.377123,0.00019452,2]
[388569317,1759243882063,-4492.44,0.00019452,2]
[388569318,1759243882072,-2151.04,0.00019452,2]
[388569319,1759243882082,-513.462665,0.00019452,2]
[388569320,1759243882093,-500.0,0.00019452,2]
[388569321,1759243882102,-177.377123,0.00019452,2]
[388569322,1759243882112,-500.0,0.00019452,2]
[388569323,1759243882126,-513.462665,0.00019452,2]
[388569324,1759243882136,-4031.72,0.00019452,2]
[388569325,1759243882146,-177.377123,0.00019452,2]
[388569326,1759243882155,-500.0,0.00019452,2]
[388569327,1759243882164,-2964.53,0.00019452,2]
[388569328,1759243882174,-151.0,0.00019452,2]
[388569329,1759243882184,-500.0,0.00019452,2]
[388569330,1759243882193,-500.0,0.00019452,2]
[388569331,1759243882202,-513.462665,0.00019452,2]
[388569332,1759243882211,-500.0,0.00019452,2]
[388569333,1759243882220,-500.0,0.00019452,2]
[388569334,1759243882230,-500.0,0.00019452,2]
[388569335,1759243882239,-500.0,0.00019452,2]
[388569336,1759243882249,-3292.9,0.00019452,2]
[388569337,1759243882258,-241.154889,0.00019452,2]
[388569338,1759243882270,-439.964211,0.00019452,2]
[388569339,1759243882280,-500.0,0.00019452,2]
[388569340,1759243882289,-526.92,0.00019452,2]
[388569341,1759243882298,-500.0,0.00019452,2]
[388569342,1759243882307,-3324.17,0.00019452,2]
[388569343,1759243882317,-500.0,0.00019452,2]
[388569344,1759243882327,-439.964211,0.00019452,2]
[388569345,1759243882336,-732.56,0.00019452,2]
[388569346,1759243882346,-2821.85,0.00019452,2]
[388569347,1759243882355,-439.964211,0.00019452,2]
[388569348,1759243882368,-1184.74,0.00019452,2]
[388569349,1759243882377,-898.43,0.00019452,2]
[388569350,1759243882387,-583.0,0.00019452,2]
[388569351,1759243882396,-500.0,0.00019452,2]
[388569352,1759243882405,-151.0,0.00019452,2]
[388569353,1759243882415,-500.0,0.00019452,2]
[388569354,1759243882424,-661.02,0.00019452,2]
[388569355,1759243882433,-439.964211,0.00019452,2]
[388569356,1759243882443,-500.0,0.00019452,2]
[388569357,1759243882452,-2560.34,0.00019452,2]
[388569358,1759243882462,-257.963977,0.00019452,2]
[388569359,1759243882471,-2046.99,0.00019452,2]
[388569360,1759243882481,-500.0,0.00019452,2]
[388569361,1759243882490,-257.963977,0.00019452,2]
[388569362,1759243882499,-4624.82,0.00019452,2]
[388569363,1759243882509,-500.0,0.00019452,2]
[388569364,1759243882520,-3466.53,0.00019452,2]
[388569365,1759243882530,-500.0,0.00019452,2]
[388569366,1759243882539,-257.963977,0.00019452,2]
[388569367,1759243882549,-251.986327,0.00019452,2]
[388569368,1759243882559,-257.963977,0.00019452,2]
[388569369,1759243882569,-3105.83,0.00019452,2]
[388569370,1759243882578,-939.33,0.00019452,2]
[388569371,1759243882588,-251.986327,0.00019452,2]
[388569372,1759243882598,-500.0,0.00019452,2]
[388569373,1759243882607,-500.0,0.00019452,2]
[388569374,1759243882617,-500.0,0.00019452,2]
[388569375,1759243882627,-251.986327,0.00019452,2]
[388569376,1759243882636,-1068.303714,0.00019452,2]
[388569377,1759243882646,-251.986327,0.00019452,2]
[388569378,1759243882655,-30.60192678,0.00019452,2]
[388569379,1759243883942,-469.39807322,0.00019452,2]
[388569380,1759243883952,-187.23627345,0.00019452,2]
[388569381,1759243883964,-881.06744055,0.00019452,2]
[388569382,1759243883973,-500.0,0.00019452,2]
[388569383,1759243883983,-547.04476724,0.00019452,2]
[388569384,1759243884114,-521.25894676,0.00019452,2]
[388569385,1759243884123,-2589.94099907,0.00019452,2]
[388569386,1759243884135,-1011.05900093,0.00019452,2]
[388569387,1759243884144,-500.0,0.00019452,2]
[388569388,1759243884153,-1185.86725081,0.00019452,2]
[388569389,1759243884165,-213.02274919,0.00019452,2]
[388569390,1759243884175,-92.35112096,0.00019452,2]
[388569391,1759243884187,-58.64887904,0.00019452,2]
[388569392,1759243884196,-930.23,0.00019452,2]
[388569393,1759243884205,-19.60435586,0.00019452,2]
[388569394,1759243884226,-614.68697519,0.00019452,2]
[388569395,1759243884238,-434.01238295,0.00019452,2]
[388569396,1759243884247,-906.86,0.00019452,2]
[388569397,1759243884257,-500.0,0.00019452,2]
[388569398,1759243884268,-500.0,0.00019452,2]
[388569399,1759243884278,-289.10522876,0.00019452,2]
[388569400,1759243885273,-321.66959,0.00019178,2]
[388569401,1759243885282,-151.0,0.00019178,2]
[388569402,1759243885291,-151.0,0.00019178,2]
[388569403,1759243885301,-210.89477124,0.00019452,2]
[388569404,1759243885311,-282.888,0.00019452,2]
[388569405,1759243885321,-649.78,0.00019452,2]
[388569406,1759243885331,-500.0,0.00019452,2]
[388569407,1759243885340,-282.888,0.00019452,2]
[388569408,1759243885350,-4407.74,0.00019452,2]
[388569409,1759243885359,-601.07641896,0.00019452,2]
[388569410,1759243885369,-1700.17,0.00019452,2]
[388569411,1759243885379,-500.0,0.00019452,2]
[388569412,1759243885389,-282.888,0.00019452,2]
[388569413,1759243885399,-151.0,0.00019452,2]
[388569414,1759243885408,-361.66920961,0.00019452,2]
[388569415,1759243885418,-1299.41,0.00019452,2]
[388569416,1759243885428,-500.0,0.00019452,2]
[388569417,1759243885438,-282.888,0.00019452,2]
[388569418,1759243885447,-500.0,0.00019452,2]
[388569419,1759243885457,-2792.33,0.00019452,2]
[388569420,1759243885467,-5083.1,0.00019452,2]
[388569421,1759243885477,-1121.19,0.00019452,2]
[388569422,1759243885487,-523.6,0.00019452,2]
[388569423,1759243885496,-5296.49,0.00019452,2]
[388569424,1759243885505,-500.0,0.00019452,2]
[388569425,1759243885516,-1879.37,0.00019452,2]
[388569426,1759243885526,-1096.67,0.00019452,2]
[388569427,1759243885535,-151.0,0.00019452,2]
[388569428,1759243885545,-3571.88,0.00019452,2]
[388569429,1759243885554,-151.0,0.00019452,2]
[388569430,1759243885564,-881.11,0.00019452,2]
[388569431,1759243885574,-500.0,0.00019452,2]
[388569432,1759243885583,-151.0,0.00019452,2]
[388569433,1759243885593,-500.0,0.00019452,2]
[388569434,1759243885603,-3884.01,0.00019452,2]
[388569435,1759243885612,-500.0,0.00019452,2]
[388569436,1759243885623,-500.0,0.00019452,2]
[388569437,1759243885632,-1064.22,0.00019452,2]
[388569438,1759243885641,-1400.372464,0.00019452,2]
[388569439,1759243885651,-151.0,0.00019452,2]
[388569440,1759243885660,-710.39,0.00019452,2]
[388569441,1759243885669,-1108.16,0.00019452,2]
[388569442,1759243885680,-1400.372464,0.00019452,2]
[388569443,1759243885690,-500.0,0.00019452,2]
[388569444,1759243885699,-3363.37,0.00019452,2]
[388569445,1759243885708,-1400.372464,0.00019452,2]
[388569446,1759243885718,-500.0,0.00019452,2]
[388569447,1759243885727,-500.0,0.00019452,2]
[388569448,1759243885737,-2843.26,0.00019452,2]
[388569449,1759243885747,-1400.372464,0.00019452,2]
[388569450,1759243885756,-500.0,0.00019452,2]
[388569451,1759243885765,-3512.3,0.00019452,2]
[388569452,1759243885774,-500.0,0.00019452,2]
[388569453,1759243885783,-151.0,0.00019452,2]
[388569454,1759243885792,-500.0,0.00019452,2]
[388569455,1759243885801,-151.0,0.00019452,2]
[388569456,1759243885811,-7679.82,0.00019452,2]
[388569457,1759243885820,-158.18793,0.00019452,2]
[388569458,1759243885829,-151.0,0.00019452,2]
[388569459,1759243885841,-1542.41,0.00019452,2]
[388569460,1759243885851,-500.0,0.00019452,2]
[388569461,1759243885861,-879.12,0.00019452,2]
[388569462,1759243885870,-547.83,0.00019452,2]
[388569463,1759243885879,-608.6,0.00019452,2]
[388569464,1759243885889,-500.0,0.00019452,2]
[388569465,1759243885899,-151.0,0.00019452,2]
[388569466,1759243885911,-938.56,0.00019452,2]
[388569467,1759243885920,-500.0,0.00019452,2]
[388569468,1759243885930,-151.0,0.00019452,2]
[388569469,1759243885939,-4927.14,0.00019452,2]
[388569470,1759243885948,-162.266241,0.00019452,2]
[388569471,1759243885957,-1089.86,0.00019452,2]
[388569472,1759243885966,-829.99,0.00019452,2]
[388569473,1759243885976,-989.47,0.00019452,2]
[388569474,1759243885985,-500.0,0.00019452,2]
[388569475,1759243885994,-165.023911,0.00019452,2]
[388569476,1759243886003,-697.53,0.00019452,2]
[388569477,1759243886012,-860.26,0.00019452,2]
[388569478,1759243886023,-165.023911,0.00019452,2]
[388569479,1759243886032,-384.30137215,0.00019452,2]
[388569480,1759243886044,-500.0,0.00019452,2]
[388569481,1759243886054,-151.0,0.00019452,2]
[388569482,1759243886063,-500.0,0.00019452,2]
[388569483,1759243886072,-165.023911,0.00019452,2]
[388569484,1759243886082,-500.0,0.00019452,2]
[388569485,1759243886093,-500.0,0.00019452,2]
[388569486,1759243886102,-165.023911,0.00019452,2]
[388569487,1759243886111,-610.56,0.00019452,2]
[388569488,1759243886122,-500.0,0.00019452,2]
[388569489,1759243886131,-446.91374,0.00019452,2]
[388569490,1759243886140,-559.906261,0.00019452,2]
[388569491,1759243886149,-4000.09,0.00019452,2]
[388569492,1759243886158,-2610.4,0.00019452,2]
[388569493,1759243886167,-151.0,0.00019452,2]
[388569494,1759243886176,-559.906261,0.00019452,2]
[388569495,1759243886185,-446.91374,0.00019452,2]
[388569496,1759243886194,-500.0,0.00019452,2]
[388569497,1759243886203,-151.0,0.00019452,2]
[388569498,1759243886212,-500.0,0.00019452,2]
[388569499,1759243886222,-151.0,0.00019452,2]
[388569500,1759243886231,-2315.21,0.00019452,2]
[388569501,1759243886241,-712.94,0.00019452,2]
[388569502,1759243886250,-559.906261,0.00019452,2]
[388569503,1759243886260,-635.26,0.00019452,2]
[388569504,1759243886270,-446.91374,0.00019452,2]
[388569505,1759243886283,-1241.84,0.00019452,2]
[388569506,1759243886292,-151.0,0.00019452,2]
[388569507,1759243886301,-4635.08,0.00019452,2]
[388569508,1759243886311,-151.0,0.00019452,2]
[388569509,1759243886320,-559.906261,0.00019452,2]
[388569510,1759243886330,-446.91374,0.00019452,2]
[388569511,1759243886339,-500.0,0.00019452,2]
[388569512,1759243886347,-500.0,0.00019452,2]
[388569513,1759243886356,-151.0,0.00019452,2]
[388569514,1759243886367,-500.0,0.00019452,2]
[388569515,1759243886378,-151.0,0.00019452,2]
[388569516,1759243886388,-935.379173,0.00019452,2]
[388569517,1759243886402,-151.0,0.00019452,2]
[388569518,1759243886411,-151.0,0.00019452,2]
[388569519,1759243886421,-500.0,0.00019452,2]
[388569520,1759243886430,-151.0,0.00019452,2]
[388569521,1759243886439,-935.379173,0.00019452,2]
[388569522,1759243886448,-3545.03,0.00019452,2]
[388569523,1759243886458,-500.0,0.00019452,2]
[388569524,1759243886467,-935.379173,0.00019452,2]
[388569525,1759243886478,-151.0,0.00019452,2]
[388569526,1759243886488,-3941.09,0.00019452,2]
[388569527,1759243886499,-500.0,0.00019452,2]
[388569528,1759243886509,-672.26,0.00019452,2]
[388569529,1759243886519,-5219.82,0.00019452,2]
[388569530,1759243886529,-977.35,0.00019452,2]
[388569531,1759243886538,-1194.79,0.00019452,2]
[388569532,1759243886547,-500.0,0.00019452,2]
[388569533,1759243886556,-2138.48,0.00019452,2]
[388569534,1759243886565,-500.0,0.00019452,2]
[388569535,1759243886575,-2228.78,0.00019452,2]
[388569536,1759243886584,-4201.08,0.00019452,2]
[388569537,1759243886593,-925.67,0.00019452,2]
[388569538,1759243886603,-500.0,0.00019452,2]
[388569539,1759243886613,-500.19,0.00019452,2]
[388569540,1759243886622,-1934.01,0.00019452,2]
[388569541,1759243886632,-500.0,0.00019452,2]
[388569542,1759243886641,-500.0,0.00019452,2]
[388569543,1759243886650,-1963.48,0.00019452,2]
[388569544,1759243886660,-6044.11,0.00019452,2]
[388569545,1759243886669,-1331.16,0.00019452,2]
[388569546,1759243886678,-1854.6,0.00019452,2]
[388569547,1759243886687,-500.0,0.00019452,2]
[388569548,1759243886696,-500.0,0.00019452,2]
[388569549,1759243886706,-500.0,0.00019452,2]
[388569550,1759243886715,-2775.75,0.00019452,2]
[388569551,1759243886724,-500.0,0.00019452,2]
[388569552,1759243886734,-1814.33,0.00019452,2]
[388569553,1759243886743,-500.0,0.00019452,2]
[388569554,1759243886753,-1600.72,0.00019452,2]
[388569555,1759243886762,-500.34,0.00019452,2]
[388569556,1759243886773,-500.0,0.00019452,2]
[388569557,1759243886782,-500.0,0.00019452,2]
[388569558,1759243886792,-648.45,0.00019452,2]
[388569559,1759243886801,-3027.16,0.00019452,2]
[388569560,1759243886811,-500.0,0.00019452,2]
[388569561,1759243886820,-3520.26,0.00019452,2]
[388569562,1759243886829,-500.0,0.00019452,2]
[388569563,1759243886838,-562.006989,0.00019452,2]
[388569564,1759243886847,-500.0,0.00019452,2]
[388569565,1759243886857,-151.0,0.00019452,2]
[388569566,1759243886866,-500.0,0.00019452,2]
[388569567,1759243886876,-598.23,0.00019452,2]
[388569568,1759243886885,-562.006989,0.00019452,2]
[388569569,1759243886895,-151.0,0.00019452,2]
[388569570,1759243886904,-500.0,0.00019452,2]
[388569571,1759243886914,-2774.48,0.00019452,2]
[388569572,1759243886924,-500.0,0.00019452,2]
[388569573,1759243886933,-562.006989,0.00019452,2]
[388569574,1759243886942,-3961.23,0.00019452,2]
[388569575,1759243886951,-550.29,0.00019452,2]
[388569576,1759243886960,-500.0,0.00019452,2]
[388569577,1759243886970,-703.65,0.00019452,2]
[388569578,1759243886980,-562.006989,0.00019452,2]
[388569579,1759243886989,-500.0,0.00019452,2]
[388569580,1759243886998,-500.0,0.00019452,2]
[388569581,1759243887007,-613.11,0.00019452,2]
[388569582,1759243887017,-500.0,0.00019452,2]
[388569583,1759243887026,-2013.49,0.00019452,2]
[388569584,1759243887035,-618.66,0.00019452,2]
[388569585,1759243887048,-4537.1,0.00019452,2]
[388569586,1759243887057,-1744.81,0.00019452,2]
[388569587,1759243887067,-328.484407,0.00019452,2]
[388569588,1759243887076,-151.0,0.00019452,2]
[388569589,1759243887085,-1975.23,0.00019452,2]
[388569590,1759243887096,-500.0,0.00019452,2]
[388569591,1759243887107,-500.0,0.00019452,2]
[388569592,1759243887118,-500.0,0.00019452,2]
[388569593,1759243887127,-328.484407,0.00019452,2]
[388569594,1759243887136,-235.520792,0.00019452,2]
[388569595,1759243887145,-18773.04,0.00019452,2]
[388569596,1759243887154,-500.0,0.00019452,2]
[388569597,1759243887164,-1863.44,0.00019452,2]
[388569598,1759243887173,-151.0,0.00019452,2]
[388569599,1759243887183,-500.0,0.00019452,2]
[388569600,1759243887192,-586.91042877,0.00019452,2]
[388569601,1759243887202,-2365.29,0.00019452,2]
[388569602,1759243887211,-328.484407,0.00019452,2]
[388569603,1759243887222,-151.0,0.00019452,2]
[388569604,1759243887232,-1511.99,0.00019452,2]
[388569605,1759243887241,-151.0,0.00019452,2]
[388569606,1759243887251,-572.19,0.00019452,2]
[388569607,1759243887260,-4461.49,0.00019452,2]
[388569608,1759243887271,-328.484407,0.00019452,2]
[388569609,1759243887280,-500.0,0.00019452,2]
[388569610,1759243887289,-151.0,0.00019452,2]
[388569611,1759243887298,-1355.54,0.00019452,2]
[388569612,1759243887307,-500.0,0.00019452,2]
[388569613,1759243887316,-151.0,0.00019452,2]
[388569614,1759243887325,-559.36,0.00019452,2]
[388569615,1759243887335,-955.76,0.00019452,2]
[388569616,1759243887344,-965.82,0.00019452,2]
[388569617,1759243887353,-151.0,0.00019452,2]
[388569618,1759243887363,-2415.34,0.00019452,2]
[388569619,1759243887372,-554.590049,0.00019452,2]
[388569620,1759243887381,-151.0,0.00019452,2]
[388569621,1759243887389,-500.0,0.00019452,2]
[388569622,1759243887398,-500.0,0.00019452,2]
[388569623,1759243887407,-500.0,0.00019452,2]
[388569624,1759243887417,-151.0,0.00019452,2]
[388569625,1759243887427,-626.84,0.00019452,2]
[388569626,1759243887436,-151.0,0.00019452,2]
[388569627,1759243887445,-554.590049,0.00019452,2]
[388569628,1759243887454,-151.0,0.00019452,2]
[388569629,1759243887463,-151.0,0.00019452,2]
[388569630,1759243887472,-256.874107,0.00019452,2]
[388569631,1759243887481,-554.590049,0.00019452,2]
[388569632,1759243887490,-151.0,0.00019452,2]
[388569633,1759243887500,-500.0,0.00019452,2]
[388569634,1759243887510,-554.590049,0.00019452,2]
[388569635,1759243887520,-151.0,0.00019452,2]
[388569636,1759243887529,-162.110232,0.00019452,2]
[388569637,1759243887538,-500.0,0.00019452,2]
[388569638,1759243887548,-500.0,0.00019452,2]
[388569639,1759243887557,-500.0,0.00019452,2]
[388569640,1759243887567,-1196.391478,0.00019452,2]
[388569641,1759243887576,-1174.81,0.00019452,2]
[388569642,1759243887585,-500.0,0.00019452,2]
[388569643,1759243887594,-500.0,0.00019452,2]
[388569644,1759243887605,-1196.391478,0.00019452,2]
[388569645,1759243887614,-5493.72,0.00019452,2]
[388569646,1759243887625,-3156.72,0.00019452,2]
[388569647,1759243887635,-1106.7,0.00019452,2]
[388569648,1759243887644,-2448.83,0.00019452,2]
[388569649,1759243887654,-509.5,0.00019452,2]
[388569650,1759243887664,-20485.59,0.00019452,2]
[388569651,1759243887674,-2922.79,0.00019452,2]
[388569652,1759243887683,-500.0,0.00019452,2]
[388569653,1759243887692,-1318.96,0.00019452,2]
[388569654,1759243887701,-500.0,0.00019452,2]
[388569655,1759243887711,-847.88,0.00019452,2]
[388569656,1759243887720,-1196.391478,0.00019452,2]
[388569657,1759243887730,-500.0,0.00019452,2]
[388569658,1759243887936,-1217.47,0.00019452,2]
[388569659,1759243887952,-1196.391478,0.00019452,2]
[388569660,1759243887961,-1859.67,0.00019452,2]
[388569661,1759243887971,-500.0,0.00019452,2]
[388569662,1759243887981,-500.0,0.00019452,2]
[388569663,1759243887990,-151.0,0.00019452,2]